bitfinex-derivatives/quotes_BTCF0:USTF0_20250325
["timestamp","ask_amount","ask_price","bid_price","bid_amount"]
[1742935786914,0.54825214,88059.0,88058.0,0.95156]
[1742935787413,0.54779792,88059.0,88058.0,0.95156]
[1742935787807,0.54779792,88059.0,88058.0,1.0650965]
[1742935788616,0.43426272,88059.0,88058.0,1.0650965]
[1742935788915,0.43426272,88059.0,88058.0,1.2050965]
[1742935789213,0.54779792,88059.0,88058.0,1.2050965]
[1742935789900,0.54779792,88059.0,88058.0,1.2046965]
[1742935790102,0.43426272,88059.0,88058.0,1.2054565]
[1742935790604,0.36236272,88059.0,88058.0,2.7054565]
[1742935790803,0.36172272,88059.0,88058.0,2.7054565]
[1742935790998,0.29122272,88059.0,88058.0,2.7054565]
[1742935791501,0.29122272,88059.0,88058.0,2.7504737]
[1742935791706,0.29122272,88059.0,88058.0,2.8504737]
[1742935792415,0.2907685,88059.0,88058.0,2.8504737]
[1742935792716,0.2907685,88059.0,88058.0,2.4896737]
[1742935792910,0.2907685,88059.0,88058.0,3.2112737]
[1742935794115,0.2907685,88059.0,88058.0,1.6007537]
[1742935794414,0.41312213,88059.0,88058.0,0.8864172]
[1742935794612,0.4050237,88059.0,88058.0,0.8414]
[1742935795005,0.4050237,88059.0,88058.0,0.841]
[1742935795207,0.4738237,88059.0,88058.0,0.841]
[1742935796503,0.4768237,88059.0,88058.0,0.841]
[1742935796716,0.4808237,88059.0,88058.0,0.61156]
[1742935797307,0.48036948,88059.0,88058.0,0.61156]
[1742935798209,0.47636948,88059.0,88058.0,0.61156]
[1742935798410,0.48036948,88059.0,88058.0,0.61156]
[1742935799006,0.1135494,88048.0,88042.0,0.40817168]
[1742935799207,0.11357,88032.0,88031.0,0.00045438]
[1742935799403,0.47557001,88032.0,88031.0,0.03105438]
[1742935800621,0.47557001,88032.0,88027.0,8e-05]
[1742935800622,0.1135752,88028.0,88027.0,8e-05]
[1742935800923,0.1135803,88024.0,88023.0,0.00017035]
[1742935801107,0.4757403,88024.0,88023.0,0.00017035]
[1742935801309,0.4757403,88024.0,88023.0,0.10025035]
[1742935801515,0.4757403,88024.0,88023.0,0.10085035]
[1742935802526,0.5450403,88024.0,88023.0,0.10085035]
[1742935802719,0.5454403,88024.0,88023.0,0.10085035]
[1742935802929,0.5454403,88024.0,88023.0,0.35085035]
[1742935803130,0.5454403,88024.0,88023.0,0.35185035]
[1742935803708,0.5454403,88024.0,88023.0,0.10185035]
[1742935803914,0.5454403,88024.0,88023.0,0.10277035]
[1742935811122,0.43186,88024.0,88023.0,0.10277035]
[1742935811330,0.36256,88024.0,88023.0,0.47635195]
[1742935811831,0.4761403,88024.0,88023.0,0.47635195]
[1742935812038,0.4761403,88024.0,88023.0,0.36277035]
[1742935812422,0.4761403,88024.0,88023.0,1.86277035]
[1742935812633,0.4761403,88024.0,88023.0,0.36277035]
[1742935813026,0.4761403,88024.0,88023.0,0.47635195]
[1742935813227,0.4761403,88024.0,88023.0,0.36277035]
[1742935813626,0.4761403,88024.0,88023.0,0.50227035]
[1742935814241,0.1136061,88004.0,88003.0,8e-05]
[1742935814427,0.1136061,88004.0,87985.0,0.3608]
[1742935814743,0.1136591,87963.0,87962.0,8e-05]
[1742935814926,0.7216,87963.0,87941.0,0.0724]
[1742935815122,0.3608,87953.0,87942.0,0.11064]
[1742935815427,0.00152,87953.0,87943.0,1.61121056]
[1742935815635,0.3608,87952.0,87943.0,2.13121056]
[1742935815837,0.3608,87944.0,87943.0,2.13121056]
[1742935816021,0.36093008,87944.0,87943.0,2.13121056]
[1742935816224,0.36093008,87944.0,87943.0,2.02017056]
[1742935816425,0.4744837,87944.0,87943.0,2.13149056]
[1742935816839,0.47604371,87944.0,87943.0,2.13149056]
[1742935817025,0.47644371,87944.0,87943.0,2.13149056]
[1742935817222,0.47644371,87944.0,87943.0,2.02017056]
[1742935817427,0.47644371,87944.0,87943.0,2.13149056]
[1742935818025,0.47644371,87944.0,87943.0,2.02017056]
[1742935818225,0.47644371,87944.0,87943.0,2.13145056]
[1742935818423,0.47644371,87944.0,87943.0,2.02017056]
[1742935819028,0.98025892,87944.0,87943.0,2.02017056]
[1742935819234,0.98027748,87944.0,87943.0,2.02017056]
[1742935819436,0.98014371,87944.0,87943.0,2.02017056]
[1742935819823,0.98028153,87944.0,87943.0,2.02017056]
[1742935820129,0.25854371,87944.0,87943.0,2.02017056]
[1742935820439,0.4076,87993.0,87943.0,2.17017056]
[1742935820629,1e-08,87944.0,87943.0,0.63385546]
[1742935820830,0.0568186,87980.0,87977.0,0.1136405]
[1742935821143,0.1719757,87980.0,87979.0,0.7216]
[1742935821346,0.1719757,87980.0,87962.0,0.82512]
[1742935821347,0.5681932,87979.0,87942.0,0.3608]
[1742935821637,0.3608,87960.0,87942.0,0.3708]
[1742935821940,0.1705084,87953.0,87952.0,0.00017056]
[1742935822139,0.17157369,87953.0,87952.0,0.00017056]
[1742935822344,0.17111906,87953.0,87952.0,0.00017056]
[1742935823043,0.0568397,87948.0,87935.0,0.00045488]
[1742935823247,0.474494,87936.0,87935.0,0.00045488]
[1742935823539,0.47605401,87936.0,87935.0,0.00045488]
[1742935824344,0.62605401,87936.0,87935.0,8e-08]
[1742935825144,0.1137147,87920.0,87919.0,6e-08]
[1742935825348,0.5886747,87920.0,87919.0,6e-08]
[1742935825659,0.1137328,87906.0,87904.0,0.1137349]
[1742935825838,0.1152528,87906.0,87905.0,0.5645341]
[1742935826439,0.00152,87906.0,87905.0,0.5645341]
[1742935826643,0.00017056,87914.0,87913.0,0.1137237]
[1742935826837,0.00169056,87914.0,87913.0,0.7664037]
[1742935827031,0.00017056,87914.0,87913.0,0.7664037]
[1742935827239,0.00017056,87914.0,87913.0,2.2664037]
[1742935827438,0.11389296,87914.0,87913.0,2.2664037]
[1742935827840,0.11389296,87914.0,87913.0,0.7664037]
[1742935828046,0.11541296,87914.0,87913.0,0.6537237]
[1742935828247,0.00269056,87914.0,87913.0,0.7663637]
[1742935828452,0.0004,87928.0,87913.0,1.01344]
[1742935828646,0.0004,87928.0,87922.0,0.3608]
[1742935828951,0.0004,87928.0,87927.0,0.1137056]
[1742935829147,0.0004,87928.0,87927.0,0.6137056]
[1742935829448,0.1141043,87928.0,87927.0,0.5]
[1742935830151,0.1156243,87928.0,87927.0,0.5]
[1742935830351,0.1156243,87928.0,87927.0,0.501]
[1742935830538,0.1156243,87928.0,87927.0,0.40221814]
[1742935830738,0.00192,87928.0,87927.0,0.51592374]
[1742935830939,0.00017056,87936.0,87935.0,0.1136953]
[1742935831136,0.00017056,87936.0,87935.0,0.5463353]
[1742935831453,0.00170718,87958.0,87943.0,0.1136849]
[1742935831641,0.00144001,87944.0,87943.0,0.5942849]
[1742935831840,0.11512371,87944.0,87943.0,0.5942849]
[1742935832047,0.00144001,87944.0,87943.0,0.5942849]
[1742935832233,0.0568359,87954.0,87945.0,0.0568408]
[1742935832438,0.20308924,87960.0,87946.0,0.11264]
[1742935832439,0.56388924,87960.0,87946.0,0.11264]
[1742935832646,0.56388924,87960.0,87946.0,0.51638207]
[1742935832647,0.00291766,87958.0,87946.0,0.51638207]
[1742935832850,0.1136766,87951.0,87950.0,0.1136741]
[1742935833157,0.00187765,87958.0,87950.0,0.4606]
[1742935833338,0.1136746,87951.0,87950.0,0.4606]
[1742935833533,0.1136746,87951.0,87950.0,0.9350759]
[1742935833940,0.00487765,87958.0,87950.0,0.8214]
[1742935834137,0.00291766,87958.0,87957.0,0.1136669]
[1742935834348,0.00291766,87958.0,87957.0,0.4969069]
[1742935834349,0.00595765,87958.0,87957.0,0.4969069]
[1742935834548,0.00487765,87958.0,87957.0,0.4969069]
[1742935834743,0.11554325,87958.0,87957.0,0.4969069]
[1742935834947,0.11662325,87958.0,87957.0,0.4969069]
[1742935835247,0.11554325,87958.0,87957.0,0.6669069]
[1742935835745,0.11954325,87958.0,87957.0,0.6669069]
[1742935836048,0.11954325,87958.0,87957.0,0.55324]
[1742935836343,0.11954325,87958.0,87957.0,0.55284]
[1742935836546,0.12254325,87958.0,87957.0,0.6665069]
[1742935838146,0.00887765,87958.0,87957.0,0.6665069]
[1742935839053,0.00991766,87958.0,87957.0,0.6665069]
[1742935840046,0.00887765,87958.0,87957.0,0.6665069]
[1742935840655,0.12254325,87958.0,87957.0,0.6665069]
[1742935840842,0.12358326,87958.0,87957.0,0.6665069]
[1742935841045,0.00991766,87958.0,87957.0,0.7347069]
[1742935841347,0.00887765,87958.0,87957.0,0.7347069]
[1742935841548,0.12254325,87958.0,87957.0,0.7347069]
[1742935841748,0.12358326,87958.0,87957.0,0.7347069]
[1742935841947,0.12254325,87958.0,87957.0,0.7347069]
[1742935842347,0.00887765,87958.0,87957.0,0.7347069]
[1742935842750,0.12254325,87958.0,87957.0,0.62104]
[1742935842953,0.12254325,87958.0,87957.0,0.7347069]
[1742935843554,0.00887765,87958.0,87957.0,0.7347069]
[1742935846649,0.12254325,87958.0,87957.0,0.7347069]
[1742935847248,0.00887765,87958.0,87957.0,0.7347069]
[1742935847743,0.12254325,87958.0,87957.0,0.7347069]
[1742935847951,0.00887765,87958.0,87957.0,0.8063069]
[1742935848172,0.12254325,87958.0,87957.0,0.58044]
[1742935848461,0.12254325,87958.0,87957.0,0.17064]
[1742935849147,0.1136707,87954.0,87953.0,8e-05]
[1742935849449,0.1149507,87954.0,87953.0,0.05068]
[1742935849650,0.2524507,87954.0,87953.0,0.0506]
[1742935849851,0.26030935,87954.0,87953.0,0.0506]
[1742935850360,0.26030935,87954.0,87953.0,0.05]
[1742935850547,0.26430935,87954.0,87953.0,0.0506]
[1742935850747,0.26730935,87954.0,87953.0,0.0506]
[1742935850961,0.15363865,87954.0,87948.0,8e-05]
[1742935851148,0.15363865,87954.0,87941.0,0.00017056]
[1742935851149,0.1136862,87942.0,87941.0,0.00017056]
[1742935851351,0.1151262,87942.0,87941.0,0.00017056]
[1742935851566,0.16160252,87942.0,87941.0,0.00017056]
[1742935852455,0.16160252,87942.0,87941.0,0.00077056]
[1742935852658,0.21774742,87942.0,87941.0,0.00017056]
[1742935853456,0.20648121,87942.0,87941.0,0.00017056]
[1742935853961,0.20948121,87942.0,87941.0,0.00017056]
[1742935855964,0.20938121,87942.0,87941.0,0.00017056]
[1742935857558,0.19983983,87942.0,87941.0,0.00017056]
[1742935857752,0.18602975,87942.0,87941.0,0.00017056]
[1742935858556,0.19514095,87942.0,87941.0,0.00017056]
[1742935859871,0.20851407,87942.0,87941.0,0.00017056]
[1742935860363,0.20857364,87942.0,87941.0,0.00017056]
[1742935861066,0.4110535,87942.0,87941.0,0.00017056]
[1742935861566,0.5406535,87942.0,87941.0,0.00017056]
[1742935861863,0.54061617,87942.0,87941.0,0.00017056]
[1742935862073,0.1136953,87935.0,87934.0,1.5667]
[1742935862270,0.12282874,87935.0,87934.0,1.90814]
[1742935862569,0.13212739,87935.0,87934.0,0.5218366]
[1742935863064,0.13212739,87935.0,87934.0,0.5878366]
[1742935863260,0.13512739,87935.0,87934.0,0.47374]
[1742935863465,0.13512739,87935.0,87934.0,0.5874366]
[1742935863761,0.02143209,87935.0,87934.0,0.5874366]
[1742935863970,0.01085865,87935.0,87934.0,2.9129966]
[1742935864168,0.003,87942.0,87941.0,0.1136875]
[1742935864365,0.003,87942.0,87941.0,0.9250875]
[1742935864573,0.003,87942.0,87941.0,1.0562875]
[1742935864769,0.003,87942.0,87941.0,1.10129104]
[1742935865069,0.16890947,87943.0,87942.0,0.1136862]
[1742935865265,0.17046948,87943.0,87942.0,2.0744062]
[1742935865571,0.16890947,87943.0,87942.0,2.1375062]
[1742935865766,0.16890947,87943.0,87942.0,2.18252263]
[1742935866173,0.16890947,87943.0,87942.0,2.30552263]
[1742935866466,0.16890947,87943.0,87942.0,2.36852263]
[1742935866663,0.05700367,87958.0,87946.0,0.0568402]
[1742935866664,0.00017047,87958.0,87946.0,0.0568402]
[1742935866864,0.00017047,87958.0,87957.0,0.4744669]
[1742935867073,0.00930976,87958.0,87957.0,1.0771257]
[1742935867272,0.12297536,87958.0,87957.0,1.0771257]
[1742935867466,0.12297536,87958.0,87957.0,1.08042]
[1742935867668,0.12304461,87958.0,87957.0,1.1940869]
[1742935868174,0.01237901,87958.0,87957.0,1.1940869]
[1742935869073,0.01337901,87958.0,87957.0,1.1940869]
[1742935869675,0.01333619,87958.0,87957.0,1.1940869]
[1742935869862,0.01336364,87958.0,87957.0,1.1940869]
[1742935870474,0.01336364,87958.0,87957.0,1.2024883]
[1742935870683,0.3608,87967.0,87963.0,0.0568292]
[1742935870871,0.36224,87967.0,87966.0,0.1136552]
[1742935871074,0.4758939,87967.0,87966.0,0.2936552]
[1742935871372,0.36224,87967.0,87966.0,0.2942552]
[1742935871971,0.4758939,87967.0,87966.0,0.1806]
[1742935872171,0.4758939,87967.0,87966.0,0.2942552]
[1742935872370,0.4788939,87967.0,87966.0,0.2942552]
[1742935872568,0.5464939,87967.0,87966.0,0.2942552]
[1742935872775,0.5618496,87967.0,87966.0,0.1806]
[1742935872975,0.56139489,87967.0,87966.0,0.2942552]
[1742935873165,0.56139489,87967.0,87966.0,0.1806]
[1742935873773,0.5615841,87967.0,87966.0,0.1806]
[1742935874079,0.5615841,87967.0,87966.0,0.30448]
[1742935874378,0.5615841,87967.0,87966.0,0.55448]
[1742935875472,0.5615841,87967.0,87966.0,0.55408]
[1742935875877,0.56164449,87967.0,87966.0,0.55408]
[1742935876579,0.57018014,87967.0,87966.0,0.55408]
[1742935877783,0.56972543,87967.0,87966.0,0.55408]
[1742935879884,0.63282543,87967.0,87966.0,0.55408]
[1742935880279,0.63282543,87967.0,87966.0,0.55368]
[1742935881976,0.61722013,87967.0,87966.0,0.55368]
[1742935882579,0.64257037,87967.0,87966.0,0.55368]
[1742935883285,0.61676542,87967.0,87966.0,0.55368]
[1742935883786,0.64254557,87967.0,87966.0,0.55368]
[1742935884188,0.63263013,87967.0,87966.0,0.55368]
[1742935884687,0.61676542,87967.0,87966.0,0.7985352]
[1742935884883,0.64253396,87967.0,87966.0,0.68488]
[1742935885082,0.64253396,87967.0,87966.0,0.68448]
[1742935885477,0.64253358,87967.0,87966.0,0.68448]
[1742935885690,0.63399793,87967.0,87966.0,0.68448]
[1742935886978,0.63399793,87967.0,87966.0,0.5606]
[1742935887186,0.64263592,87967.0,87966.0,0.4294]
[1742935887587,0.64218121,87967.0,87966.0,0.4294]
[1742935888198,0.64218121,87967.0,87966.0,0.2506]
[1742935888488,0.113672,87953.0,87952.0,0.0677]
[1742935888691,0.113672,87953.0,87952.0,0.5477]
[1742935888692,0.14104016,87953.0,87952.0,0.5477]
[1742935888886,0.270893,87953.0,87952.0,0.5477]
[1742935889495,0.27090637,87953.0,87952.0,0.5477]
[1742935890689,0.28023033,87953.0,87952.0,0.5477]
[1742935890880,0.28023033,87953.0,87952.0,0.5563039]
[1742935893290,0.27090637,87953.0,87952.0,0.5563039]
[1742935893598,0.37221959,87953.0,87952.0,0.5563039]
[1742935894396,0.37221959,87953.0,87952.0,0.6233039]
[1742935894794,0.37221959,87953.0,87952.0,0.45280054]
[1742935896302,0.40596115,87953.0,87952.0,0.45280054]
[1742935897595,0.40596115,87953.0,87952.0,0.44419664]
[1742935897997,0.40596115,87953.0,87952.0,0.37719664]
[1742935898496,0.41414792,87953.0,87952.0,0.37719664]
[1742935899596,0.38871355,87953.0,87952.0,0.37719664]
[1742935899785,0.4133107,87953.0,87952.0,0.37719664]
[1742935900298,0.42633762,87953.0,87952.0,0.37719664]
[1742935901390,0.29128284,87953.0,87952.0,0.37719664]
[1742935901590,0.26668569,87953.0,87952.0,0.37719664]
[1742935901895,0.29128182,87953.0,87952.0,0.37719664]
[1742935902087,0.29127527,87953.0,87952.0,0.37719664]
[1742935903798,0.27824835,87953.0,87952.0,0.37719664]
[1742935904196,0.28684049,87953.0,87952.0,0.37719664]
[1742935905303,0.27865372,87953.0,87952.0,0.37719664]
[1742935905505,0.28682865,87953.0,87952.0,0.37719664]
[1742935907104,0.28682865,87953.0,87952.0,0.26]
[1742935908496,0.28702015,87953.0,87952.0,0.26]
[1742935910009,0.64779723,87953.0,87952.0,0.26]
[1742935910507,0.57200509,87953.0,87952.0,0.325]
[1742935910710,0.57200509,87953.0,87952.0,0.392]
[1742935911210,0.57200509,87953.0,87951.0,0.0004548]
[1742935911211,0.1136733,87952.0,87951.0,0.0004548]
[1742935911413,0.14003146,87952.0,87951.0,0.2404548]
[1742935911709,0.27653146,87952.0,87951.0,0.2404548]
[1742935911904,0.2940931,87952.0,87951.0,0.2404548]
[1742935912105,0.31540389,87952.0,87951.0,0.2095041]
[1742935912295,0.29786353,87952.0,87951.0,0.2095041]
[1742935912909,0.31540389,87952.0,87951.0,0.2095041]
[1742935913909,0.29786353,87952.0,87951.0,0.2095041]
[1742935914511,0.31539999,87952.0,87951.0,0.2091041]
[1742935914908,0.29786353,87952.0,87951.0,0.2091041]
[1742935915309,1.03699767,87952.0,87951.0,0.2091041]
[1742935915614,1.01946353,87952.0,87951.0,0.2091041]
[1742935916400,1.07471879,87952.0,87951.0,0.2091041]
[1742935917017,1.08182397,87952.0,87951.0,0.2095589]
[1742935918917,1.08404663,87952.0,87951.0,0.2095589]
[1742935919711,0.94754663,87952.0,87951.0,0.2095589]
[1742935919907,0.58670706,87952.0,87951.0,0.2995589]
[1742935920217,0.57960276,87952.0,87951.0,0.3694589]
[1742935920415,0.57960276,87952.0,87951.0,0.4343589]
[1742935920416,0.58405812,87952.0,87951.0,0.4343589]
[1742935920721,0.56648843,87952.0,87951.0,0.4343589]
[1742935921213,0.58317069,87952.0,87951.0,0.4343589]
[1742935921809,0.56561129,87952.0,87951.0,0.4343589]
[1742935922115,0.5651554,87952.0,87951.0,0.4343589]
[1742935922619,0.57859465,87952.0,87951.0,0.4343589]
[1742935922821,0.6918705,87952.0,87951.0,0.4343589]
[1742935923715,0.6918705,87952.0,87951.0,0.5480335]
[1742935923917,0.67843125,87952.0,87951.0,0.44405332]
[1742935924514,0.67843125,87952.0,87951.0,0.4343589]
[1742935925413,0.67842101,87952.0,87951.0,0.4343589]
[1742935926319,0.5098899,87952.0,87951.0,0.4343589]
[1742935927526,0.50982469,87952.0,87951.0,0.4343589]
[1742935927919,0.50982465,87952.0,87951.0,0.4343589]
[1742935929615,0.50968321,87952.0,87951.0,0.4343589]
[1742935931716,0.14888321,87952.0,87951.0,0.4343589]
[1742935932118,0.13328888,87952.0,87951.0,0.4343589]
[1742935932322,0.14899948,87952.0,87951.0,0.4343589]
[1742935935028,0.21369948,87952.0,87951.0,0.4343589]
[1742935936722,0.21363541,87952.0,87951.0,0.4343589]
[1742935937920,0.21356963,87952.0,87951.0,0.4343589]
[1742935939822,0.18816976,87952.0,87951.0,0.4343589]
[1742935940019,0.27922,87952.0,87951.0,0.1782884]
[1742935940229,0.29232645,87952.0,87951.0,0.1782884]
[1742935941822,0.69992645,87952.0,87951.0,0.1782884]
[1742935945240,0.67457621,87952.0,87951.0,0.1782884]
[1742935945435,0.69020177,87952.0,87951.0,0.1782884]
[1742935945622,0.68434218,87952.0,87951.0,0.1782884]
[1742935945823,0.73959743,87952.0,87951.0,0.1782884]
[1742935946033,0.75522296,87952.0,87951.0,0.1782884]
[1742935946234,0.1136888,87940.0,87939.0,0.0662]
[1742935946420,0.50148029,87940.0,87939.0,0.4462]
[1742935946628,0.63118029,87940.0,87939.0,0.4462]
[1742935947137,0.63937675,87940.0,87939.0,0.4462]
[1742935947325,0.64924973,87940.0,87939.0,0.4462]
[1742935947531,0.64924973,87940.0,87939.0,0.25]
[1742935948632,0.66280828,87940.0,87939.0,0.25]
[1742935950641,1.07040828,87940.0,87939.0,0.25]
[1742935951028,1.12566354,87940.0,87939.0,0.25]
[1742935953536,1.12696097,87940.0,87939.0,0.25]
[1742935955323,1.12685159,87940.0,87939.0,0.25]
[1742935959640,1.07159633,87940.0,87939.0,0.25]
[1742935960430,1.07870217,87940.0,87939.0,0.25]
[1742935961143,0.41784039,87940.0,87939.0,0.5936901]
[1742935961327,0.0004,87944.0,87942.0,0.0568431]
[1742935961530,0.20215044,87954.0,87944.0,0.1136837]
[1742935961732,0.28176717,87945.0,87944.0,0.50068]
[1742935961934,0.28176717,87945.0,87944.0,0.67832966]
[1742935962239,0.28296718,87945.0,87944.0,0.66838]
[1742935962740,0.28176717,87945.0,87944.0,0.79187198]
[1742935962949,0.16808477,87945.0,87944.0,0.79187198]
[1742935963131,0.3608,87956.0,87953.0,0.113672]
[1742935963330,0.31702115,87954.0,87953.0,0.604352]
[1742935963536,0.31702115,87954.0,87953.0,0.49068]
[1742935963737,0.20335045,87954.0,87953.0,0.604352]
[1742935963932,0.4176293,87964.0,87959.0,0.1136643]
[1742935964137,0.00152001,87960.0,87959.0,0.46112]
[1742935964437,0.113663,87960.0,87959.0,0.46112]
[1742935964641,0.114463,87960.0,87959.0,0.63292]
[1742935964844,0.113663,87960.0,87959.0,0.63292]
[1742935965538,0.114463,87960.0,87959.0,0.63292]
[1742935965743,0.11400829,87960.0,87959.0,0.63292]
[1742935968235,0.11440829,87960.0,87959.0,0.63292]
[1742935969549,0.47520829,87960.0,87959.0,0.63292]
[1742935969742,0.48525436,87960.0,87959.0,0.00112]
[1742935969945,0.113672,87953.0,87952.0,0.1654]
[1742935970146,0.11479201,87953.0,87952.0,0.32608]
[1742935970442,0.11479201,87953.0,87952.0,0.3254]
[1742935970841,0.27979201,87953.0,87952.0,0.3254]
[1742935971036,0.27979201,87953.0,87952.0,0.326]
[1742935971238,0.27979201,87953.0,87952.0,0.3254]
[1742935972446,0.27979201,87953.0,87952.0,0.326]
[1742935972654,0.27979201,87953.0,87952.0,0.3254]
[1742935972840,0.27979201,87953.0,87952.0,0.326]
[1742935973036,0.27979201,87953.0,87952.0,0.3254]
[1742935975345,0.27979201,87953.0,87952.0,0.32604]
[1742935978457,0.2885823,87953.0,87952.0,0.32604]
[1742935978653,0.29628027,87953.0,87952.0,0.32604]
[1742935980158,0.29628108,87953.0,87952.0,0.32604]
[1742935980649,0.1136733,87952.0,87951.0,6e-08]
[1742935980860,0.49236238,87952.0,87951.0,6e-08]
[1742935981047,0.66336238,87952.0,87951.0,6e-08]
[1742935981247,0.1136759,87950.0,87949.0,6e-08]
[1742935981448,0.123787,87950.0,87949.0,6e-08]
[1742935981650,0.1136914,87938.0,87937.0,0.0856]
[1742935981847,0.4846025,87938.0,87937.0,0.2262]
[1742935982248,0.6556025,87938.0,87937.0,0.2262]
[1742935982756,0.66558699,87938.0,87937.0,0.2262]
[1742935983654,0.66561993,87938.0,87937.0,0.2262]
[1742935984857,0.6556307,87938.0,87937.0,0.2262]
[1742935985047,0.0101393,87938.0,87937.0,0.6891927]
[1742935985255,0.1238307,87938.0,87937.0,0.6891927]
[1742935985555,0.1238307,87938.0,87937.0,0.77879598]
[1742935985951,0.0101393,87938.0,87937.0,1.04791598]
[1742935986156,0.4076,87958.0,87938.0,0.0568454]
[1742935986361,0.4076,87958.0,87953.0,0.1705067]
[1742935986362,0.1705119,87954.0,87953.0,0.1705067]
[1742935986549,0.1705119,87954.0,87953.0,0.8002267]
[1742935987560,0.1705119,87954.0,87953.0,0.686556]
[1742935987754,0.1714319,87954.0,87953.0,0.686556]
[1742935988160,0.1714319,87954.0,87953.0,0.855556]
[1742935989453,0.1714319,87954.0,87953.0,0.79872]
[1742935989760,0.2590319,87954.0,87953.0,0.79872]
[1742935989966,0.34972444,87954.0,87953.0,0.79872]
[1742935993867,0.00881254,87954.0,87953.0,0.793312]
[1742935994166,0.0004,87960.0,87959.0,0.1136643]
[1742935994371,0.056823,87974.0,87973.0,0.1136436]
[1742935994668,0.1140423,87976.0,87975.0,0.1136436]
[1742935994972,0.01600225,87976.0,87975.0,0.3442436]
[1742935995266,0.00104,87976.0,87975.0,0.79371053]
[1742935995465,0.0568179,87981.0,87976.0,0.0568207]
[1742935995664,0.113641,87977.0,87976.0,0.48072]
[1742935995865,0.12859993,87977.0,87976.0,0.67858]
[1742935996159,0.113641,87977.0,87976.0,0.67858]
[1742935996365,0.114361,87977.0,87976.0,0.67858]
[1742935996566,0.49018821,87977.0,87976.0,0.56002]
[1742935996769,0.49018821,87977.0,87976.0,0.24072]
[1742935996955,0.49018821,87977.0,87976.0,0.24]
[1742935997156,0.65458821,87977.0,87976.0,0.24]
[1742935997956,0.65413358,87977.0,87976.0,0.24]
[1742935998154,0.66348287,87977.0,87976.0,0.24]
[1742936000367,0.66348287,87977.0,87976.0,0.2396]
[1742936000567,1.07108287,87977.0,87976.0,0.0691337]
[1742936002570,0.1136462,87973.0,87972.0,8e-05]
[1742936002771,0.1142862,87973.0,87972.0,0.21008]
[1742936003073,0.30540807,87973.0,87972.0,0.21008]
[1742936005568,0.28103157,87973.0,87972.0,0.21008]
[1742936005782,0.22134268,87973.0,87972.0,0.21008]
[1742936005976,0.22134268,87973.0,87972.0,0.2108]
[1742936006285,0.13814268,87973.0,87972.0,0.2108]
[1742936006759,0.30144268,87973.0,87972.0,0.2108]
[1742936010077,0.30166384,87973.0,87972.0,0.2108]
[1742936011773,0.30982294,87973.0,87972.0,0.2108]
[1742936013674,0.30976897,87973.0,87972.0,0.2108]
[1742936021373,0.28529067,87973.0,87972.0,0.2108]
[1742936021575,0.30986876,87973.0,87972.0,0.21072]
[1742936022876,0.1136488,87971.0,87967.0,0.00062527]
[1742936023081,0.1136681,87956.0,87955.0,0.1709]
[1742936023276,0.49904619,87956.0,87955.0,0.4215]
[1742936023475,0.66492619,87956.0,87955.0,0.4215]
[1742936023878,0.67294143,87956.0,87955.0,0.4215]
[1742936024281,0.68302833,87956.0,87955.0,0.4215]
[1742936024782,0.68302833,87956.0,87955.0,0.4245]
[1742936025382,0.68302833,87956.0,87955.0,0.2136]
[1742936025683,0.68302833,87956.0,87955.0,0.1812568]
[1742936028987,0.113672,87953.0,87952.0,0.00170548]
[1742936029291,0.13909009,87953.0,87952.0,0.05170548]
[1742936029488,0.14710533,87953.0,87952.0,0.05170548]
[1742936029790,0.14710533,87953.0,87952.0,0.13370548]
[1742936032785,0.14710533,87953.0,87952.0,0.21710548]
[1742936036692,0.14707237,87953.0,87952.0,0.21710548]
[1742936037793,0.14707237,87953.0,87952.0,0.13370548]
[1742936039091,0.31227237,87953.0,87952.0,0.21520548]
[1742936040590,0.31227237,87953.0,87952.0,0.13370548]
[1742936040786,0.31227237,87953.0,87952.0,0.05170548]
[1742936042393,0.31318852,87953.0,87952.0,0.05170548]
[1742936042994,0.31318852,87953.0,87952.0,0.13830548]
[1742936043183,0.31318852,87953.0,87952.0,0.22580548]
[1742936044795,0.31318852,87953.0,87952.0,0.05170548]
[1742936045791,0.32625969,87953.0,87952.0,0.05170548]
[1742936046587,0.32627139,87953.0,87952.0,0.05170548]
[1742936046982,0.32627139,87953.0,87952.0,0.02315558]
[1742936047183,0.32627139,87953.0,87951.0,0.0004548]
[1742936047408,0.1136862,87942.0,87941.0,0.0869]
[1742936047588,0.50079918,87942.0,87941.0,0.1769]
[1742936047793,0.113694,87936.0,87935.0,0.00045488]
[1742936047993,0.14028699,87936.0,87935.0,0.17735488]
[1742936048308,0.22358699,87936.0,87935.0,0.17795488]
[1742936048494,0.2237295,87936.0,87935.0,0.17735488]
[1742936049095,0.3121295,87936.0,87935.0,0.17735488]
[1742936049288,0.3121295,87936.0,87935.0,0.18143488]
[1742936049695,0.31935614,87936.0,87935.0,0.18035488]
[1742936050489,0.31950343,87936.0,87935.0,0.18303488]
[1742936050893,0.32967117,87936.0,87935.0,0.18303488]
[1742936051505,0.32967117,87936.0,87935.0,0.18235488]
[1742936052291,0.32967117,87936.0,87935.0,0.18343488]
[1742936053292,0.32967117,87936.0,87935.0,0.18235488]
[1742936053695,0.32967117,87936.0,87935.0,0.18295488]
[1742936054908,0.69047117,87936.0,87935.0,0.18295488]
[1742936055604,0.69047117,87936.0,87935.0,0.18235488]
[1742936056498,0.70798958,87936.0,87935.0,0.18303488]
[1742936056698,0.68995447,87936.0,87935.0,0.18235488]
[1742936057408,0.70297839,87936.0,87935.0,0.18235488]
[1742936058511,0.68995447,87936.0,87935.0,0.18235488]
[1742936059204,0.68991214,87936.0,87935.0,0.18235488]
[1742936061509,0.68991214,87936.0,87935.0,0.07235488]
[1742936063007,0.68994901,87936.0,87935.0,0.07235488]
[1742936063707,0.68995543,87936.0,87935.0,0.07235488]
[1742936064306,0.39539369,87936.0,87935.0,0.24235488]
[1742936064509,0.14828769,87936.0,87935.0,0.35665018]
[1742936064710,0.14006105,87936.0,87935.0,0.24295488]
[1742936064903,0.1397209,87936.0,87935.0,0.24295488]
[1742936066217,0.12448031,87936.0,87935.0,0.24295488]
[1742936066602,0.13028112,87936.0,87935.0,0.24295488]
[1742936066814,0.11481401,87936.0,87935.0,0.24295488]
[1742936067017,0.13025882,87936.0,87922.0,0.0568559]
[1742936067214,0.13025882,87936.0,87904.0,0.0568677]
[1742936067410,0.13025882,87936.0,74770.0,0.6939]
[1742936067411,0.3608,87893.0,87878.0,0.33286774]
[1742936067615,0.4745677,87879.0,87878.0,0.33346774]
[1742936067811,0.50114551,87879.0,87878.0,0.33346774]
[1742936068218,0.50114551,87879.0,87878.0,1.83346774]
[1742936068407,0.50103466,87879.0,87878.0,1.83346774]
[1742936068716,0.50400237,87879.0,87878.0,1.83346774]